bitfinex-derivatives/quotes_BTCF0:USTF0_20241010
["timestamp","ask_amount","ask_price","bid_price","bid_amount"]
[1728567046872,0.1904,61066.0,61065.0,0.55396678]
[1728567047067,0.272356,61066.0,61065.0,0.55396678]
[1728567047268,0.272356,61066.0,61065.0,0.442756]
[1728567047472,0.272356,61066.0,61065.0,0.081956]
[1728567047675,0.081959,61064.0,61063.0,0.3608]
[1728567047874,0.082359,61064.0,61063.0,0.3608]
[1728567049274,0.084359,61064.0,61063.0,0.3608]
[1728567049469,0.084359,61064.0,61063.0,0.44276]
[1728567050069,0.083359,61064.0,61063.0,0.44276]
[1728567050674,0.0014,61064.0,61063.0,0.44276]
[1728567050877,0.0004,61064.0,61063.0,0.44276]
[1728567051077,0.0024,61064.0,61063.0,0.72276]
[1728567051981,0.0024,61064.0,61063.0,0.44276]
[1728567052476,0.0034,61064.0,61063.0,0.44276]
[1728567052870,0.0024,61064.0,61063.0,0.44276]
[1728567053073,0.0004,61066.0,61063.0,0.68611519]
[1728567053270,0.001,61064.0,61063.0,0.44316]
[1728567053469,0.001,61064.0,61063.0,1.01541165]
[1728567053671,0.001,61064.0,61063.0,2.10669165]
[1728567053872,0.001,61064.0,61063.0,2.92669165]
[1728567054074,0.001,61064.0,61063.0,2.64669165]
[1728567054467,0.00018802,61066.0,61065.0,0.081957]
[1728567054674,0.0004,61077.0,61076.0,0.081942]
[1728567054872,0.082342,61077.0,61076.0,0.442742]
[1728567055179,0.082342,61077.0,61076.0,0.55344744]
[1728567055483,0.082341,61077.0,61076.0,0.55344744]
[1728567055780,0.082341,61077.0,61076.0,0.442742]
[1728567056680,0.081944,61075.0,61074.0,0.3608]
[1728567056990,0.082344,61075.0,61074.0,0.55347347]
[1728567057183,0.082344,61075.0,61074.0,0.3608]
[1728567057576,0.082344,61075.0,61074.0,0.442745]
[1728567057885,0.0004,61075.0,61074.0,0.442745]
[1728567058182,0.0004,61075.0,61074.0,0.55346019]
[1728567058773,0.0084,61075.0,61074.0,0.55346019]
[1728567059275,0.090344,61075.0,61074.0,0.442745]
[1728567059481,0.0024567,61082.0,61081.0,0.081936]
[1728567059680,0.0024567,61082.0,61081.0,0.722736]
[1728567060179,0.0024567,61082.0,61081.0,0.442736]
[1728567060575,0.0843907,61082.0,61081.0,0.442736]
[1728567060777,0.2824567,61082.0,61076.0,0.0004]
[1728567060972,0.362341,61077.0,61076.0,0.0004]
[1728567061183,0.2804,61077.0,61074.0,1.198e-05]
[1728567061379,0.3612,61075.0,61050.0,0.3608]
[1728567061581,0.361959,61064.0,61058.0,0.081967]
[1728567061882,0.361959,61064.0,61054.0,0.081971]
[1728567061883,0.362359,61064.0,61054.0,0.081971]
[1728567062082,0.362359,61064.0,61050.0,0.3608]
[1728567062083,1.733639,61064.0,61050.0,0.3608]
[1728567062383,1.733639,61064.0,61042.0,0.3608]
[1728567062384,0.081976,61051.0,61042.0,0.3608]
[1728567062680,0.362387,61043.0,61042.0,0.3608]
[1728567062887,0.0004,61043.0,61042.0,0.442788]
[1728567063587,0.081992,61040.0,61037.0,0.3608]
[1728567063774,0.2804,61043.0,61037.0,0.3608]
[1728567063775,0.082393,61038.0,61037.0,0.3608]
[1728567063974,0.081998,61035.0,61030.0,0.3608]
[1728567064184,0.28,61037.0,61032.0,0.082]
[1728567064375,0.28,61037.0,61030.0,0.3608]
[1728567064376,0.361996,61037.0,61034.0,0.081998]
[1728567064576,0.0004,61038.0,61034.0,0.081998]
[1728567064776,0.082003,61032.0,61030.0,0.442803]
[1728567064977,0.082403,61031.0,61030.0,0.3608]
[1728567065189,0.082403,61031.0,61030.0,0.007]
[1728567065892,0.082403,61031.0,61030.0,0.3678]
[1728567066078,0.0004,61031.0,61030.0,0.3678]
[1728567066278,0.0004,61031.0,61030.0,0.449804]
[1728567066883,0.0004,61031.0,61030.0,0.442804]
[1728567067184,0.0014,61031.0,61030.0,0.445804]
[1728567067377,0.083403,61031.0,61030.0,0.445804]
[1728567067573,0.083403,61031.0,61030.0,0.3638]
[1728567067776,0.084403,61031.0,61030.0,0.3668]
[1728567068076,0.084403,61031.0,61030.0,0.006]
[1728567068388,1.536763,61031.0,61030.0,0.006]
[1728567068683,1.536763,61031.0,61019.0,0.82]
[1728567068684,0.082018,61020.0,61019.0,0.82]
[1728567068888,0.362418,61020.0,61019.0,0.82]
[1728567069188,0.362418,61020.0,61017.0,0.0024581]
[1728567069487,0.082419,61019.0,61017.0,0.0024581]
[1728567069683,0.082023,61016.0,61010.0,0.3608]
[1728567069887,0.082034,61008.0,61007.0,0.3608]
[1728567070084,0.362434,61008.0,61007.0,0.3608]
[1728567070387,0.362434,61008.0,61001.0,0.3608]
[1728567070388,0.2804,61008.0,61001.0,0.3608]
[1728567070682,0.0004,61002.0,61001.0,0.442843]
[1728567070895,0.0004,61002.0,61001.0,0.722843]
[1728567071088,0.0004,61008.0,61007.0,0.362035]
[1728567071286,0.0004,61008.0,61007.0,0.722835]
[1728567071585,0.0014,61008.0,61007.0,0.722835]
[1728567073891,0.0014,61008.0,61001.0,0.3612]
[1728567073892,0.2814,61008.0,61001.0,0.0004]
[1728567074081,0.0004,61002.0,61001.0,0.0004]
[1728567074300,0.0004,61002.0,61001.0,0.082443]
[1728567074985,0.0004,61002.0,61001.0,0.0004]
[1728567075189,0.082442,61002.0,61001.0,0.0004]
[1728567075386,0.28,61002.0,61001.0,0.0004]
[1728567075591,0.28,61002.0,61001.0,0.0008]
[1728567075790,0.362042,61002.0,61001.0,0.0008]
[1728567076793,0.083042,61002.0,61001.0,0.0008]
[1728567077497,0.084042,61002.0,61001.0,0.0008]
[1728567079180,0.002,61002.0,61001.0,0.574643]
[1728567079391,0.0004,61008.0,61007.0,0.082035]
[1728567079688,0.0004,61008.0,61007.0,0.442835]
[1728567080696,0.0014,61008.0,61007.0,0.442835]
[1728567081190,0.0004,61011.0,61010.0,0.082031]
[1728567081497,0.08243,61011.0,61010.0,0.082031]
[1728567082085,0.0004,61011.0,61010.0,0.082031]
[1728567082483,0.0004,61011.0,61010.0,0.362031]
[1728567083296,0.0004,61011.0,61010.0,0.365031]
[1728567083496,0.0004,61011.0,61010.0,0.367031]
[1728567083992,0.0844845,61015.0,61010.0,0.367031]
[1728567083993,0.0024595,61015.0,61010.0,1.458751]
[1728567084202,0.0004,61020.0,61019.0,0.082019]
[1728567084495,0.0004,61031.0,61030.0,0.362004]
[1728567084796,0.0004,61031.0,61030.0,0.722804]
[1728567085187,0.081972,61054.0,61030.0,1.2408]
[1728567085486,0.082387,61043.0,61042.0,0.722788]
[1728567085688,0.082387,61043.0,61042.0,0.3608]
[1728567085891,0.0004,61043.0,61042.0,0.442788]
[1728567086288,0.082387,61043.0,61042.0,0.442788]
[1728567087002,0.0004,61043.0,61042.0,0.442788]
[1728567087190,0.00245781,61057.0,61042.0,0.3618]
[1728567087496,0.08197,61056.0,61046.0,0.081982]
[1728567087793,0.28,61056.0,61047.0,0.3608]
[1728567088005,0.081975,61052.0,61050.0,0.081976]
[1728567088185,0.081975,61052.0,61047.0,0.3608]
[1728567088388,0.081975,61052.0,61051.0,0.081976]
[1728567088985,0.00245781,61057.0,61049.0,0.28]
[1728567089197,0.08442581,61057.0,61056.0,0.081969]
[1728567089388,0.081971,61055.0,61054.0,0.3608]
[1728567089589,0.082371,61055.0,61054.0,0.3608]
[1728567090302,0.081975,61052.0,61047.0,0.3628]
[1728567090502,0.0004,61048.0,61047.0,0.3628]
[1728567090799,0.0004,61048.0,61047.0,0.444781]
[1728567090999,0.0004,61048.0,61047.0,0.442781]
[1728567091297,0.36238,61048.0,61042.0,0.82136]
[1728567091502,0.362387,61043.0,61042.0,0.0004]
[1728567092202,0.082387,61043.0,61042.0,0.0004]
[1728567094195,0.853867,61043.0,61042.0,0.0004]
[1728567094403,0.081993,61038.0,61037.0,0.0004]
[1728567094698,0.362393,61038.0,61037.0,0.0004]
[1728567096298,0.362393,61038.0,61037.0,0.0034]
[1728567096499,0.362393,61038.0,61037.0,0.0074]
[1728567096703,0.082393,61038.0,61037.0,0.086395]
[1728567096901,0.087393,61038.0,61037.0,0.086395]
[1728567097503,0.087393,61038.0,61037.0,0.444195]
[1728567097504,0.094393,61038.0,61037.0,0.444195]
[1728567097706,0.094393,61038.0,61037.0,0.0014]
[1728567097893,0.374393,61038.0,61037.0,0.0014]
[1728567098608,0.865913,61038.0,61037.0,0.0014]
[1728567099197,0.916613,61038.0,61037.0,0.0014]
[1728567099394,0.082,61033.0,61030.0,0.0004]
[1728567099604,0.722803,61031.0,61030.0,0.0004]
[1728567099809,0.442803,61031.0,61030.0,0.0004]
[1728567100011,1.214763,61031.0,61030.0,0.0004]
[1728567100207,0.443203,61031.0,61030.0,0.0004]
[1728567100398,0.082403,61031.0,61030.0,0.0004]
[1728567100601,0.082403,61031.0,61030.0,0.082404]
[1728567100801,0.0004,61031.0,61030.0,0.362404]
[1728567101001,0.0004,61031.0,61030.0,2.273964]
[1728567101409,0.0004,61031.0,61030.0,1.453964]
[1728567102096,0.0084,61031.0,61030.0,1.453964]
[1728567102514,0.0084,61031.0,61030.0,1.173964]
[1728567102695,0.0024,61031.0,61030.0,1.173964]
[1728567103012,0.0024,61031.0,61030.0,0.573964]
[1728567103313,0.0004,61038.0,61037.0,0.081995]
[1728567103503,0.082393,61038.0,61037.0,0.081995]
[1728567103704,0.0004,61038.0,61037.0,0.081995]
[1728567103908,0.0004,61038.0,61037.0,0.442795]
[1728567105203,0.0004,61038.0,61037.0,0.882795]
[1728567105403,0.0004,61038.0,61037.0,1.374315]
[1728567106000,0.0004,61038.0,61037.0,0.90531778]
[1728567106204,0.0004,61048.0,61042.0,0.081988]
[1728567106404,0.081968,61057.0,61054.0,0.081972]
[1728567106702,0.13326,61063.0,61054.0,0.442772]
[1728567106703,0.081967,61058.0,61054.0,0.442772]
[1728567106913,0.081971,61056.0,61054.0,0.442772]
[1728567107217,0.081965,61059.0,61054.0,0.442772]
[1728567107413,0.0513,61063.0,61054.0,0.882772]
[1728567107612,0.0144,61055.0,61054.0,0.883772]
[1728567108509,0.0503,61074.0,61054.0,0.883772]
[1728567108711,0.081957,61065.0,61062.0,0.08196]
[1728567109007,0.081964,61060.0,61059.0,0.443605]
[1728567109211,0.082364,61060.0,61059.0,0.442765]
[1728567110014,0.082364,61060.0,61059.0,0.3608]
[1728567110209,0.082364,61060.0,61047.0,0.06494756]
[1728567110210,0.49136,61059.0,61047.0,0.06494756]
[1728567110413,0.49136,61059.0,61030.0,0.0008]
[1728567110414,0.082003,61031.0,61030.0,0.0008]
[1728567110718,0.522403,61031.0,61030.0,0.082768]
[1728567111610,0.522403,61031.0,61030.0,0.0008]
[1728567111825,1.014963,61031.0,61030.0,0.0058]
[1728567112007,1.614963,61031.0,61030.0,0.0058]
[1728567112208,0.523403,61031.0,61030.0,0.0058]
[1728567112515,0.523403,61031.0,61030.0,0.101768]
[1728567113018,0.523403,61031.0,61030.0,0.088768]
[1728567114222,0.0084,61031.0,61030.0,0.083768]
[1728567114719,0.0114,61031.0,61030.0,0.082768]
[1728567114910,0.0114,61031.0,61030.0,0.164772]
[1728567115105,0.082001,61033.0,61030.0,0.164772]
[1728567115306,0.082001,61033.0,61032.0,0.081968]
[1728567118518,0.086001,61033.0,61032.0,0.081968]
[1728567118721,0.526001,61033.0,61032.0,0.081968]
[1728567118914,0.527001,61033.0,61032.0,0.081968]
[1728567120126,0.087001,61033.0,61032.0,0.081968]
[1728567120318,0.081992,61040.0,61038.0,0.081993]
[1728567120624,0.00120001,61042.0,61030.0,0.0008]
[1728567120625,0.081988,61042.0,61041.0,0.081968]
[1728567120814,0.521988,61042.0,61041.0,0.081968]
[1728567122109,0.081992,61039.0,61038.0,0.004]
[1728567122314,0.082003,61031.0,61027.0,0.082008]
[1728567122521,0.522403,61031.0,61028.0,0.082007]
[1728567122718,0.522403,61031.0,61030.0,0.082768]
[1728567123310,0.082011,61025.0,61024.0,0.00245718]
[1728567123511,0.883211,61025.0,61024.0,0.00245718]
[1728567123721,0.082018,61020.0,61013.0,0.128226]
[1728567124019,0.522418,61020.0,61013.0,0.128226]
[1728567124216,0.522418,61020.0,61019.0,0.082368]
[1728567124415,0.362418,61020.0,61019.0,0.082368]
[1728567124809,0.362418,61020.0,61019.0,0.0004]
[1728567125012,0.08203,61011.0,61010.0,0.0004]
[1728567125221,0.44323,61011.0,61010.0,0.0004]
[1728567125421,1.89575,61011.0,61010.0,0.0004]
[1728567125621,1.89575,61011.0,61006.0,0.00245852]
[1728567125622,0.082034,61008.0,61006.0,0.00245852]
[1728567125819,0.362434,61008.0,61006.0,0.00245852]
[1728567126019,0.082434,61008.0,61006.0,0.00245852]
[1728567127328,0.082434,61008.0,61001.0,0.0008]
[1728567127329,0.083434,61008.0,61007.0,0.0074]
[1728567128228,0.083434,61008.0,61007.0,0.0164]
[1728567133118,0.04239034,61008.0,61007.0,0.180403]
[1728567133324,0.0014,61008.0,61007.0,0.180403]
[1728567133526,0.083434,61008.0,61007.0,0.180403]
[1728567134125,0.0014,61008.0,61007.0,0.180403]
[1728567134523,0.082431,61011.0,61010.0,0.082031]
[1728567134837,0.082431,61011.0,61010.0,0.163999]
[1728567135131,0.0004,61011.0,61010.0,0.163999]
[1728567135427,0.08243,61011.0,61010.0,0.163999]
[1728567135817,0.0014,61011.0,61010.0,0.169999]
[1728567136226,0.0014,61011.0,61010.0,0.175999]
[1728567136432,0.082024,61016.0,61015.0,0.082024]
[1728567136927,0.082024,61016.0,61015.0,0.081968]
[1728567137427,0.36325916,61029.0,61015.0,0.88]
[1728567137631,0.082381,61048.0,61024.0,1.2816]
[1728567137826,0.082381,61048.0,61047.0,0.442781]
[1728567138023,0.0004,61048.0,61047.0,0.442781]
[1728567139120,0.004,61048.0,61047.0,0.442781]
[1728567139327,0.0004,61060.0,61059.0,0.081965]
[1728567139631,0.0004,61060.0,61047.0,0.6412]
[1728567139632,0.0004,61060.0,61052.0,0.361974]
[1728567139838,0.0004,61060.0,61048.0,0.28]
[1728567140133,0.0004,61053.0,61052.0,0.361975]
[1728567140436,0.0004,61053.0,61052.0,0.882775]
[1728567141037,0.0004,61060.0,61059.0,0.081965]
[1728567141243,0.0004,61060.0,61059.0,0.442765]
[1728567142528,0.0004,61060.0,61059.0,0.443765]
[1728567143129,0.0004,61060.0,61059.0,0.883765]
[1728567143440,0.0124,61060.0,61059.0,0.884765]
[1728567143936,0.0004,61075.0,61074.0,0.081945]
[1728567144235,0.00245697,61079.0,61076.0,0.081942]
[1728567144430,0.0004,61098.0,61087.0,0.081928]
[1728567144624,0.0004,61098.0,61094.0,0.081918]
[1728567144829,0.0004,61098.0,61094.0,0.882718]
[1728567145030,0.081914,61097.0,61094.0,0.882718]
[1728567145233,0.0004,61098.0,61094.0,0.882718]
[1728567145740,0.19565573,61095.0,61094.0,0.882718]
[1728567146133,0.19565573,61095.0,61094.0,0.3608]
[1728567146734,0.19765573,61095.0,61094.0,0.3618]
[1728567146935,0.083917,61095.0,61094.0,0.3618]
[1728567147439,0.083917,61095.0,61094.0,0.3628]
[1728567147838,0.083917,61095.0,61094.0,0.3618]
[1728567148842,0.082314,61098.0,61094.0,0.3608]
[1728567149030,0.0004,61098.0,61097.0,0.081914]
[1728567149234,0.082313,61098.0,61097.0,0.081914]
[1728567149632,0.0004,61098.0,61097.0,0.081914]
[1728567150739,0.0004,61105.0,61104.0,0.081905]
[1728567150936,0.0004,61105.0,61104.0,0.882705]
[1728567151133,0.0004,61105.0,61104.0,1.973665]
[1728567151639,0.00285736,61108.0,61107.0,0.081901]
[1728567151943,0.00285736,61108.0,61107.0,0.442701]
[1728567153751,0.00285736,61108.0,61107.0,0.444701]
[1728567154547,0.0004,61108.0,61107.0,0.444701]
[1728567155150,0.0004,61123.0,61108.0,0.0819]
[1728567155349,0.081893,61113.0,61108.0,0.0819]
[1728567155652,0.08189,61116.0,61108.0,0.0819]
[1728567155840,0.081894,61113.0,61108.0,0.0819]
[1728567156152,0.0819,61108.0,61107.0,0.3632]
[1728567156445,1.01322,61108.0,61107.0,0.0014]
[1728567156747,0.081904,61105.0,61104.0,0.0004]
[1728567157141,1.172864,61105.0,61104.0,0.0004]
[1728567157338,1.09136,61105.0,61089.0,0.3608]
[1728567157546,0.082324,61090.0,61089.0,0.3608]
[1728567157944,0.081932,61084.0,61083.0,0.3608]
[1728567158137,0.082332,61084.0,61083.0,0.3608]
[1728567159143,0.082332,61084.0,61083.0,0.442733]
[1728567159442,0.082332,61084.0,61083.0,0.453733]
[1728567160555,0.082332,61084.0,61083.0,0.452733]
[1728567161055,0.081913,61098.0,61096.0,0.081915]
[1728567161246,0.081913,61098.0,61097.0,0.3608]
[1728567162846,0.442697,61111.0,61097.0,0.3608]
[1728567163052,0.442697,61111.0,61102.0,0.3608]
[1728567163252,0.08436206,61103.0,61102.0,0.3608]
[1728567163547,0.081928,61087.0,61086.0,0.3608]
[1728567163848,0.082328,61087.0,61086.0,0.3608]
[1728567165247,0.082328,61087.0,61081.0,0.00245557]
[1728567165446,0.082328,61087.0,61086.0,0.002]
[1728567165640,0.082328,61087.0,61086.0,0.003]
[1728567166144,0.082328,61087.0,61086.0,0.3628]
[1728567167057,0.082328,61087.0,61086.0,0.002]
[1728567167347,0.082328,61087.0,61086.0,0.003]
[1728567167546,1.613448,61087.0,61086.0,0.003]
[1728567167745,0.573448,61087.0,61086.0,0.003]
[1728567167946,0.082328,61087.0,61086.0,0.003]
[1728567168146,0.082328,61087.0,61086.0,0.001]
[1728567168554,0.573448,61087.0,61086.0,0.001]
[1728567168946,0.574448,61087.0,61086.0,0.001]
[1728567169547,0.081944,61075.0,61074.0,0.3608]
[1728567169754,0.082344,61075.0,61074.0,0.3608]
[1728567170255,0.0004,61075.0,61074.0,0.442745]
[1728567170453,0.082344,61075.0,61074.0,0.3608]
[1728567170845,0.18308854,61075.0,61074.0,0.3718]
[1728567171159,0.22365996,61075.0,61074.0,0.3718]
[1728567171751,0.26274229,61075.0,61074.0,0.28979634]
[1728567171952,1.35394229,61075.0,61074.0,0.011]
[1728567172157,1.31485996,61075.0,61074.0,0.011]
[1728567172454,1.31485996,61075.0,61062.0,0.36325646]
[1728567172455,0.08196,61063.0,61062.0,0.36325646]
[1728567172655,0.17003674,61063.0,61062.0,0.23203353]
[1728567172846,0.22367596,61063.0,61062.0,0.23203353]
[1728567173046,0.28639076,61063.0,61062.0,0.23203353]
[1728567173649,0.081961,61062.0,61061.0,0.081963]
[1728567173846,0.28228746,61062.0,61061.0,0.081963]
[1728567174258,0.20032646,61062.0,61061.0,0.081963]
[1728567175257,0.13761166,61062.0,61061.0,0.081963]
[1728567175557,0.2199672,61062.0,61061.0,0.081963]
[1728567175855,0.13861166,61062.0,61061.0,0.095963]
[1728567176065,0.22096936,61062.0,61061.0,0.095963]
[1728567176363,0.13861166,61062.0,61061.0,0.095963]
[1728567176557,0.20454414,61062.0,61061.0,0.109963]
[1728567176749,0.30236271,61062.0,61061.0,0.109963]
[1728567176955,0.13861166,61062.0,61061.0,0.109963]
[1728567177755,0.20450214,61062.0,61061.0,0.109963]
[1728567177954,0.30232308,61062.0,61061.0,0.109963]
[1728567178459,0.13861166,61062.0,61061.0,0.109963]
[1728567178658,0.28588814,61062.0,61061.0,0.109963]
[1728567179057,0.16371142,61065.0,61064.0,0.081959]
[1728567179260,0.18017627,61070.0,61065.0,0.081957]
[1728567179450,0.24565942,61072.0,61069.0,0.8008]
[1728567179655,0.16371142,61071.0,61070.0,0.081951]
[1728567179851,0.081948,61072.0,61069.0,0.80164]
[1728567180164,0.16371142,61073.0,61069.0,0.8008]
[1728567180368,0.001,61070.0,61069.0,0.8008]
[1728567180559,0.001,61070.0,61069.0,0.722752]
[1728567180758,0.082951,61070.0,61069.0,0.3608]
[1728567180961,0.081951,61070.0,61069.0,0.442752]
[1728567181158,0.081951,61070.0,61069.0,0.449752]
[1728567181564,0.081951,61070.0,61069.0,0.3678]
[1728567181865,0.081951,61070.0,61069.0,0.3758]
[1728567182164,0.001,61072.0,61069.0,0.6558]
[1728567182465,0.001,61072.0,61071.0,0.081949]
[1728567182656,0.081948,61072.0,61071.0,0.081949]
[1728567183365,0.082948,61072.0,61071.0,0.081949]
[1728567183757,0.081948,61072.0,61071.0,0.081949]
[1728567183958,0.081948,61072.0,61071.0,0.086949]
[1728567184154,0.081948,61072.0,61071.0,0.005]
[1728567184362,0.081948,61072.0,61071.0,0.092949]
[1728567184566,0.082344,61075.0,61074.0,0.081945]
[1728567185573,0.082344,61075.0,61074.0,0.361945]
[1728567185972,0.082344,61075.0,61074.0,0.363945]
[1728567186277,0.082344,61075.0,61074.0,0.002]
[1728567186773,0.082344,61075.0,61074.0,0.005]
[1728567187370,1.534344,61075.0,61074.0,0.005]
[1728567187968,1.6488568,61075.0,61074.0,0.005]
[1728567188368,0.081959,61064.0,61063.0,0.3608]
[1728567188569,0.081964,61060.0,61053.0,0.3608]
[1728567188769,0.361964,61060.0,61053.0,0.442773]
[1728567188974,0.362364,61060.0,61052.0,0.00285683]
[1728567189274,0.081973,61053.0,61052.0,0.0004]
[1728567189475,0.11786703,61053.0,61052.0,0.0004]
[1728567189978,0.11763511,61053.0,61052.0,0.0004]
[1728567190763,0.11763511,61053.0,61052.0,0.090375]
[1728567191074,0.11863511,61053.0,61052.0,0.0084]
[1728567191669,0.11863511,61053.0,61052.0,0.090375]
[1728567191865,0.0014,61053.0,61052.0,0.095375]
[1728567192169,0.0014,61053.0,61052.0,0.456175]
[1728567193071,0.0004,61053.0,61052.0,0.452175]
[1728567193669,0.0004,61053.0,61052.0,0.454175]
[1728567193975,0.082373,61053.0,61052.0,0.452175]
[1728567194178,0.082373,61053.0,61052.0,0.0034]
[1728567194388,0.083373,61053.0,61052.0,0.0114]
[1728567194578,0.083373,61053.0,61052.0,0.451175]
[1728567194579,0.03670576,61053.0,61052.0,0.451175]
[1728567194769,0.0014,61053.0,61052.0,0.461175]
[1728567195575,0.0014,61053.0,61052.0,0.451175]
[1728567195880,0.0014,61053.0,61052.0,0.444175]
[1728567195881,0.0004,61053.0,61052.0,0.444175]
[1728567196069,0.0014,61053.0,61052.0,0.455175]
[1728567196778,0.0004,61053.0,61052.0,0.444175]
[1728567196980,0.0014,61053.0,61052.0,0.453175]
[1728567198387,0.0014,61053.0,61052.0,0.457175]
[1728567199269,0.0014,61053.0,61052.0,0.47542052]
[1728567199475,0.0004,61060.0,61059.0,0.081965]
[1728567199675,0.0004,61060.0,61059.0,0.361965]
[1728567200078,0.0004,61060.0,61059.0,1.181965]
[1728567200274,0.0004,61060.0,61059.0,0.361965]
[1728567200683,0.0014,61060.0,61059.0,1.189965]
[1728567201080,0.00245721,61071.0,61070.0,0.081951]
[1728567201282,0.00245721,61071.0,61070.0,0.361951]
[1728567201682,0.0004,61075.0,61074.0,0.081945]
[1728567202580,0.082344,61075.0,61074.0,0.081945]
[1728567202977,0.2804,61075.0,61071.0,0.081948]
[1728567203178,0.081952,61069.0,61068.0,0.3608]
[1728567203383,0.0004,61069.0,61068.0,0.442753]
[1728567203782,0.082352,61069.0,61068.0,0.442753]
[1728567204177,0.082352,61069.0,61068.0,0.3608]
[1728567204374,0.081963,61061.0,61060.0,0.08441846]
[1728567204578,0.081957,61066.0,61065.0,0.081955]
[1728567205876,0.081957,61066.0,61065.0,0.089955]
[1728567206079,0.001,61066.0,61065.0,0.457757]
[1728567206288,0.001,61066.0,61065.0,0.096957]
[1728567206588,0.081956,61066.0,61065.0,0.089957]
[1728567206794,0.081956,61066.0,61065.0,0.095957]
[1728567207681,0.081956,61066.0,61065.0,0.094957]
[1728567208389,0.081956,61066.0,61065.0,0.013]
[1728567208690,0.11761153,61066.0,61065.0,0.013]
[1728567208886,0.11758592,61066.0,61065.0,0.013]
[1728567209379,1.25866592,61066.0,61065.0,0.007]
[1728567209578,0.65866592,61066.0,61065.0,0.013]
[1728567209776,1.25866592,61066.0,61065.0,0.013]
[1728567209987,1.25866592,61066.0,61065.0,0.007]
[1728567210283,1.62246592,61066.0,61065.0,0.007]
[1728567210888,0.081963,61061.0,61060.0,0.00245646]
[1728567211077,0.15890405,61061.0,61060.0,0.00245646]
[1728567211281,0.15930405,61061.0,61060.0,0.00245646]
[1728567211692,0.15926826,61061.0,61060.0,0.00245646]
[1728567211894,0.081968,61057.0,61056.0,0.081969]
[1728567212094,0.11795504,61057.0,61056.0,0.081969]
[1728567213788,0.11795504,61057.0,61056.0,0.084969]
[1728567214194,0.03598704,61057.0,61056.0,0.084969]
[1728567214383,0.03598704,61057.0,61056.0,0.088969]
[1728567215287,0.0004,61057.0,61056.0,1.180329]
[1728567215986,0.0004,61057.0,61056.0,1.177329]
[1728567216189,0.0004,61057.0,61056.0,1.180329]
[1728567216395,0.0004,61061.0,61056.0,1.460329]
[1728567216593,0.0004,61072.0,61068.0,0.081953]
[1728567216784,0.11437998,61078.0,61071.0,0.0004]
[1728567216987,0.11437998,61084.0,61083.0,0.081933]
[1728567217186,0.0004,61087.0,61086.0,0.081929]
[1728567217688,0.0004,61087.0,61086.0,0.442729]
[1728567218987,0.0044,61087.0,61086.0,0.443729]
[1728567219897,0.0044,61087.0,61086.0,0.439529]
[1728567220590,0.095328,61087.0,61086.0,0.3628]
[1728567220792,0.095328,61087.0,61086.0,0.002]
[1728567221890,0.095328,61087.0,61077.0,0.3608]
[1728567221891,0.08194,61078.0,61077.0,0.3608]
[1728567222098,0.08234,61078.0,61077.0,0.3608]
[1728567222690,0.0004,61078.0,61077.0,0.442741]
[1728567223191,0.08434,61078.0,61077.0,0.3608]
[1728567224301,0.08434,61078.0,61074.0,0.0004]
[1728567224302,0.081944,61075.0,61074.0,0.0004]
[1728567224496,0.361944,61075.0,61074.0,0.0004]
[1728567224698,0.362344,61075.0,61074.0,0.0004]
[1728567225894,0.081948,61072.0,61071.0,0.0004]
[1728567226197,0.082348,61072.0,61071.0,0.0004]
[1728567226592,0.082348,61072.0,61059.0,0.3608]
[1728567226593,0.0004,61072.0,61059.0,0.3608]
[1728567226798,0.0004,61061.0,61059.0,0.3608]
[1728567226992,0.082363,61061.0,61059.0,0.3608]
[1728567227391,0.362363,61061.0,61059.0,0.3608]
[1728567227806,0.362363,61061.0,61060.0,0.0084]
[1728567228098,0.082363,61061.0,61060.0,0.0084]
[1728567229402,0.082363,61061.0,61060.0,0.0034]
[1728567229793,0.082363,61061.0,61060.0,0.0024]
[1728567229993,0.0024,61061.0,61060.0,0.084364]
[1728567230502,0.0034,61061.0,61060.0,0.084364]
[1728567231398,0.0034,61061.0,61060.0,0.075964]
[1728567232107,0.0074,61061.0,61060.0,0.075964]
[1728567232591,0.0024,61061.0,61060.0,0.075964]
[1728567232797,0.0034,61061.0,61060.0,0.075964]
[1728567233005,0.0014,61061.0,61060.0,0.075964]
[1728567233392,0.08195,61071.0,61070.0,0.081951]
[1728567233597,0.08195,61071.0,61070.0,0.361951]
[1728567234194,0.081952,61069.0,61066.0,0.28]
[1728567234397,0.081952,61069.0,61068.0,0.081953]
[1728567235811,0.361951,61070.0,61069.0,0.081952]
[1728567236105,0.443902,61070.0,61069.0,0.081952]
[1728567236493,0.081952,61069.0,61068.0,0.001]
[1728567236692,0.082352,61069.0,61068.0,0.001]
[1728567237203,0.39822405,61069.0,61068.0,0.001]
[1728567238800,0.08196,61064.0,61062.0,0.3608]
[1728567239001,0.08196,61064.0,61063.0,0.081959]
[1728567239418,0.08196,61064.0,61060.0,0.0004]
[1728567239419,0.081963,61061.0,61060.0,0.0004]
[1728567239605,0.081968,61057.0,61056.0,0.00136]
[1728567239797,0.39768863,61057.0,61056.0,0.0004]
[1728567240000,1.84983261,61057.0,61048.0,0.3608]
[1728567240211,0.362373,61053.0,61048.0,0.3608]
[1728567240506,0.51205759,61053.0,61048.0,0.3608]
[1728567240804,0.51205759,61053.0,61039.0,0.64164]
[1728567240805,0.081991,61040.0,61039.0,0.36164]
[1728567241005,0.49148,61039.0,61033.0,0.3608]